[Event "Titled Tuesday Blitz July 25 Early 2023"]
[White "Fisabilillah, Ummi"]
[Black "Timerkhanov, Alexander"]
[WhiteFideId "7104804"]
[BlackFideId "24177938"]
[WhiteElo "2348"]
[BlackElo "2685"]
[Result "1/2-1/2"]
[Round "1"]
[TimeControl "180+2"]
[Date "2023.07.25"]
[WhiteClock "0:00:51"]
[BlackClock "0:00:13"]
[Board "141"]

1. e4 {[%clk 0:02:59]}  c5 {[%clk 0:02:59]} 2. Nf3 {[%clk 0:02:57]}  a6 {[%clk 0:02:59]} 3. c3 {[%clk 0:02:55]}  d5 {[%clk 0:02:59]} 4. exd5 {[%clk 0:02:55]}  Qxd5 {[%clk 0:03:00]} 5. d4 {[%clk 0:02:56]}  e6 {[%clk 0:02:59]} 6. Be2 {[%clk 0:02:55]}  Nf6 {[%clk 0:02:59]} 7. O-O {[%clk 0:02:56]}  Nc6 {[%clk 0:02:58]} 8. dxc5 {[%clk 0:02:55]}  Bxc5 {[%clk 0:02:56]} 9. Qxd5 {[%clk 0:02:50]}  Nxd5 {[%clk 0:02:56]} 10. Nbd2 {[%clk 0:02:51]}  O-O {[%clk 0:02:54]} 11. Ne4 {[%clk 0:02:51]}  Be7 {[%clk 0:02:53]} 12. Rd1 {[%clk 0:02:50]}  b5 {[%clk 0:02:45]} 13. a4 {[%clk 0:02:42]}  bxa4 {[%clk 0:02:45]} 14. Rxa4 {[%clk 0:02:41]}  Bb7 {[%clk 0:02:45]} 15. Bg5 {[%clk 0:02:33]}  f6 {[%clk 0:02:44]} 16. Bc1 {[%clk 0:02:29]}  Rfd8 {[%clk 0:02:43]} 17. Bc4 {[%clk 0:02:20]}  Kf7 {[%clk 0:02:40]} 18. Bxd5 {[%clk 0:02:19]}  exd5 {[%clk 0:02:40]} 19. Ng3 {[%clk 0:02:19]}  Bc5 {[%clk 0:02:31]} 20. Nf5 {[%clk 0:02:17]}  Re8 {[%clk 0:02:26]} 21. Be3 {[%clk 0:02:14]}  Bf8 {[%clk 0:01:42]} 22. h3 {[%clk 0:02:03]}  Rad8 {[%clk 0:01:40]} 23. Bb6 {[%clk 0:01:57]}  Rd7 {[%clk 0:01:39]} 24. N5d4 {[%clk 0:01:56]}  Ne5 {[%clk 0:01:38]} 25. Nxe5+ {[%clk 0:01:48]}  fxe5 {[%clk 0:01:38]} 26. Nf3 {[%clk 0:01:49]}  h6 {[%clk 0:01:34]} 27. Re1 {[%clk 0:01:46]}  Bd6 {[%clk 0:01:33]} 28. Ra5 {[%clk 0:01:42]}  Bb8 {[%clk 0:01:32]} 29. Rd1 {[%clk 0:01:40]}  Re6 {[%clk 0:01:30]} 30. Bc5 {[%clk 0:01:39]}  g5 {[%clk 0:01:20]} 31. b4 {[%clk 0:01:39]}  Bc7 {[%clk 0:01:14]} 32. Raa1 {[%clk 0:01:37]}  Kg6 {[%clk 0:01:13]} 33. Re1 {[%clk 0:01:37]}  h5 {[%clk 0:00:59]} 34. Nd4 {[%clk 0:01:36]}  Rf6 {[%clk 0:00:54]} 35. Nf3 {[%clk 0:01:36]}  Rf5 {[%clk 0:00:47]} 36. Ra2 {[%clk 0:01:25]}  Rdf7 {[%clk 0:00:43]} 37. Rae2 {[%clk 0:01:25]}  d4 {[%clk 0:00:25]} 38. cxd4 {[%clk 0:01:13]}  Bxf3 {[%clk 0:00:19]} 39. gxf3 {[%clk 0:01:14]}  exd4 {[%clk 0:00:18]} 40. Re6+ {[%clk 0:01:13]}  Kh7 {[%clk 0:00:17]} 41. Bxd4 {[%clk 0:01:10]}  Rxf3 {[%clk 0:00:17]} 42. Re7 {[%clk 0:01:09]}  Bd6 {[%clk 0:00:17]} 43. Rxf7+ {[%clk 0:01:08]}  Rxf7 {[%clk 0:00:18]} 44. Re6 {[%clk 0:01:08]}  Rd7 {[%clk 0:00:15]} 45. Bc5 {[%clk 0:01:03]}  Bxc5 {[%clk 0:00:12]} 46. bxc5 {[%clk 0:01:04]}  Rd5 {[%clk 0:00:13]} 47. Rxa6 {[%clk 0:01:02]}  Rxc5 {[%clk 0:00:13]} 48. Kg2 {[%clk 0:01:03]}  Rc3 {[%clk 0:00:13]} 49. Rb6 {[%clk 0:01:02]}  Kg7 {[%clk 0:00:12]} 50. Ra6 {[%clk 0:01:02]}  Rd3 {[%clk 0:00:13]} 51. Rb6 {[%clk 0:01:02]}  Rd4 {[%clk 0:00:13]} 52. Rb5 {[%clk 0:01:01]}  Kg6 {[%clk 0:00:12]} 53. Rb6+ {[%clk 0:01:02]}  Kf5 {[%clk 0:00:12]} 54. Rb8 {[%clk 0:01:02]}  Rd5 {[%clk 0:00:11]} 55. Rf8+ {[%clk 0:01:02]}  Ke4 {[%clk 0:00:11]} 56. Re8+ {[%clk 0:01:03]}  Kf4 {[%clk 0:00:11]} 57. Rf8+ {[%clk 0:01:03]}  Rf5 {[%clk 0:00:11]} 58. Rh8 {[%clk 0:01:04]}  h4 {[%clk 0:00:11]} 59. Ra8 {[%clk 0:01:04]}  Rc5 {[%clk 0:00:10]} 60. Ra4+ {[%clk 0:01:03]}  Kf5 {[%clk 0:00:10]} 61. Rg4 {[%clk 0:01:03]}  Rc3 {[%clk 0:00:08]} 62. Ra4 {[%clk 0:01:04]}  Rc5 {[%clk 0:00:08]} 63. Ra8 {[%clk 0:01:02]}  Re5 {[%clk 0:00:09]} 64. Rf8+ {[%clk 0:01:01]}  Kg6 {[%clk 0:00:09]} 65. Rg8+ {[%clk 0:01:01]}  Kf6 {[%clk 0:00:09]} 66. Ra8 {[%clk 0:01:01]}  Kf5 {[%clk 0:00:08]} 67. Rf8+ {[%clk 0:01:01]}  Kg6 {[%clk 0:00:09]} 68. Rf3 {[%clk 0:01:01]}  Re4 {[%clk 0:00:08]} 69. Re3 {[%clk 0:00:56]}  Rxe3 {[%clk 0:00:05]} 70. fxe3 {[%clk 0:00:56]}  Kf6 {[%clk 0:00:04]} 71. Kf3 {[%clk 0:00:56]}  Kf5 {[%clk 0:00:05]} 72. e4+ {[%clk 0:00:54]}  Ke5 {[%clk 0:00:05]} 73. Kg4 {[%clk 0:00:47]}  Kxe4 {[%clk 0:00:05]} 74. Kxg5 {[%clk 0:00:47]}  Ke5 {[%clk 0:00:06]} 75. Kxh4 {[%clk 0:00:48]}  Kf6 {[%clk 0:00:06]} 76. Kh5 {[%clk 0:00:49]}  Kg7 {[%clk 0:00:07]} 77. Kg5 {[%clk 0:00:48]}  Kh8 {[%clk 0:00:08]} 78. Kh6 {[%clk 0:00:49]}  Kg8 {[%clk 0:00:09]} 79. h4 {[%clk 0:00:48]}  Kh8 {[%clk 0:00:10]} 80. h5 {[%clk 0:00:49]}  Kg8 {[%clk 0:00:11]} 81. Kg6 {[%clk 0:00:50]}  Kh8 {[%clk 0:00:12]} 82. h6 {[%clk 0:00:50]}  Kg8 {[%clk 0:00:13]} 83. h7+ {[%clk 0:00:51]}  Kh8 {[%clk 0:00:13]} 84. Kf7 {[%clk 0:00:51]}  Kxh7 {[%clk 0:00:13]} 1/2-1/2


[Site "https://www.chess.com"]

[Event "Titled Tuesday Blitz July 25 Early 2023"]
[White "Koshulyan, Egor A."]
[Black "morozcoma"]
[WhiteFideId "24237000"]
[WhiteElo "2678"]
[BlackElo "2347"]
[Result "1-0"]
[Round "1"]
[TimeControl "180+2"]
[Date "2023.07.25"]
[WhiteClock "0:00:16"]
[BlackClock "0:00:01"]
[Board "142"]

1. e4 {[%clk 0:02:55]}  e5 {[%clk 0:02:58]} 2. Nf3 {[%clk 0:02:54]}  Nc6 {[%clk 0:02:59]} 3. Bb5 {[%clk 0:02:54]}  a6 {[%clk 0:02:59]} 4. Ba4 {[%clk 0:02:53]}  Nf6 {[%clk 0:03:00]} 5. O-O {[%clk 0:02:53]}  Be7 {[%clk 0:03:00]} 6. Re1 {[%clk 0:02:53]}  b5 {[%clk 0:02:59]} 7. Bb3 {[%clk 0:02:53]}  Bb7 {[%clk 0:03:00]} 8. c3 {[%clk 0:02:45]}  d5 {[%clk 0:02:59]} 9. exd5 {[%clk 0:02:38]}  Nxd5 {[%clk 0:03:00]} 10. Nxe5 {[%clk 0:02:28]}  Nxe5 {[%clk 0:03:01]} 11. Rxe5 {[%clk 0:02:28]}  Nf4 {[%clk 0:03:01]} 12. f3 {[%clk 0:02:22]}  Nd3 {[%clk 0:02:55]} 13. Re2 {[%clk 0:02:15]}  O-O {[%clk 0:02:52]} 14. Bc2 {[%clk 0:02:14]}  Bc5+ {[%clk 0:02:52]} 15. Kf1 {[%clk 0:02:13]}  Nf4 {[%clk 0:02:44]} 16. d4 {[%clk 0:02:04]}  Nxe2 {[%clk 0:02:44]} 17. Qxe2 {[%clk 0:02:03]}  Bd6 {[%clk 0:02:39]} 18. g3 {[%clk 0:01:59]}  Qf6 {[%clk 0:02:34]} 19. Kg2 {[%clk 0:01:55]}  Rfe8 {[%clk 0:02:15]} 20. Qd3 {[%clk 0:01:47]}  g6 {[%clk 0:02:15]} 21. Nd2 {[%clk 0:01:45]}  Qg7 {[%clk 0:02:14]} 22. Ne4 {[%clk 0:01:41]}  f5 {[%clk 0:02:13]} 23. Nxd6 {[%clk 0:01:39]}  cxd6 {[%clk 0:02:14]} 24. Bf4 {[%clk 0:01:39]}  Qf6 {[%clk 0:02:13]} 25. Qd2 {[%clk 0:01:32]}  Qe6 {[%clk 0:01:54]} 26. Kf2 {[%clk 0:01:25]}  Rad8 {[%clk 0:01:44]} 27. h4 {[%clk 0:01:07]}  h5 {[%clk 0:01:23]} 28. a4 {[%clk 0:01:03]}  Rd7 {[%clk 0:01:06]} 29. Qd1 {[%clk 0:00:54]}  Rde7 {[%clk 0:00:53]} 30. Bd3 {[%clk 0:00:49]}  Qd5 {[%clk 0:00:42]} 31. axb5 {[%clk 0:00:48]}  axb5 {[%clk 0:00:43]} 32. Qh1 {[%clk 0:00:26]}  b4 {[%clk 0:00:22]} 33. Ra4 {[%clk 0:00:22]}  Kg7 {[%clk 0:00:17]} 34. Rxb4 {[%clk 0:00:20]}  Bc6 {[%clk 0:00:16]} 35. Bc4 {[%clk 0:00:19]}  Qa5 {[%clk 0:00:15]} 36. Bxd6 {[%clk 0:00:18]}  Re1 {[%clk 0:00:15]} 37. Qxe1 {[%clk 0:00:15]}  Rxe1 {[%clk 0:00:16]} 38. Kxe1 {[%clk 0:00:16]}  Qd8 {[%clk 0:00:15]} 39. Be5+ {[%clk 0:00:16]}  Kh7 {[%clk 0:00:14]} 40. Kf2 {[%clk 0:00:17]}  Qa5 {[%clk 0:00:14]} 41. Rb8 {[%clk 0:00:17]}  g5 {[%clk 0:00:12]} 42. Bf7 {[%clk 0:00:17]}  Bd5 {[%clk 0:00:01]} 43. Rh8# {[%clk 0:00:16]} 1-0


[Site "https://www.chess.com"]

[Event "Titled Tuesday Blitz July 25 Early 2023"]
[White "Rendle, Thomas E"]
[Black "Smiechu"]
[WhiteFideId "408760"]
[WhiteElo "2676"]
[BlackElo "2345"]
[Result "1-0"]
[Round "1"]
[TimeControl "180+2"]
[Date "2023.07.25"]
[WhiteClock "0:00:54"]
[BlackClock "0:00:31"]
[Board "144"]

1. e4 {[%clk 0:02:58]}  c5 {[%clk 0:02:57]} 2. Nf3 {[%clk 0:02:55]}  g6 {[%clk 0:02:58]} 3. Bc4 {[%clk 0:02:54]}  Nc6 {[%clk 0:02:57]} 4. c3 {[%clk 0:02:51]}  Bg7 {[%clk 0:02:56]} 5. d4 {[%clk 0:02:51]}  cxd4 {[%clk 0:02:56]} 6. cxd4 {[%clk 0:02:52]}  d6 {[%clk 0:02:52]} 7. Nc3 {[%clk 0:02:49]}  Nf6 {[%clk 0:02:52]} 8. h3 {[%clk 0:02:47]}  O-O {[%clk 0:02:52]} 9. O-O {[%clk 0:02:47]}  Nxe4 {[%clk 0:02:50]} 10. Bxf7+ {[%clk 0:02:31]}  Rxf7 {[%clk 0:02:49]} 11. Nxe4 {[%clk 0:02:32]}  Qb6 {[%clk 0:02:42]} 12. Be3 {[%clk 0:02:12]}  Qxb2 {[%clk 0:02:19]} 13. Neg5 {[%clk 0:02:11]}  Rf8 {[%clk 0:02:15]} 14. Qd3 {[%clk 0:02:11]}  d5 {[%clk 0:02:04]} 15. Rfb1 {[%clk 0:02:06]}  Bf5 {[%clk 0:01:33]} 16. Qxf5 {[%clk 0:02:05]}  Rxf5 {[%clk 0:01:25]} 17. Rxb2 {[%clk 0:02:04]}  e5 {[%clk 0:01:25]} 18. Rxb7 {[%clk 0:01:38]}  e4 {[%clk 0:01:13]} 19. Ne6 {[%clk 0:01:24]}  exf3 {[%clk 0:01:03]} 20. Rxg7+ {[%clk 0:01:19]}  Kh8 {[%clk 0:01:03]} 21. Rc7 {[%clk 0:01:17]}  Nb4 {[%clk 0:00:59]} 22. Rac1 {[%clk 0:01:13]}  h5 {[%clk 0:00:51]} 23. Bh6 {[%clk 0:00:59]}  Nd3 {[%clk 0:00:43]} 24. R1c3 {[%clk 0:00:55]}  Ne1 {[%clk 0:00:31]} 25. g4 {[%clk 0:00:53]}  hxg4 {[%clk 0:00:31]} 26. hxg4 {[%clk 0:00:54]} 1-0


[Site "https://www.chess.com"]

[Event "Titled Tuesday Blitz July 25 Early 2023"]
[White "Slovineanu, Viacheslav"]
[Black "Weetik, Vjacheslav"]
[WhiteFideId "13900510"]
[BlackFideId "4153472"]
[WhiteElo "2344"]
[BlackElo "2674"]
[Result "0-1"]
[Round "1"]
[TimeControl "180+2"]
[Date "2023.07.25"]
[WhiteClock "0:00:05"]
[BlackClock "0:00:12"]
[Board "145"]

1. d4 {[%clk 0:02:57]}  Nf6 {[%clk 0:02:59]} 2. Nf3 {[%clk 0:02:56]}  e6 {[%clk 0:02:59]} 3. c4 {[%clk 0:02:56]}  b6 {[%clk 0:02:54]} 4. e3 {[%clk 0:02:56]}  Bb7 {[%clk 0:02:50]} 5. Bd3 {[%clk 0:02:56]}  Bb4+ {[%clk 0:02:29]} 6. Nbd2 {[%clk 0:02:54]}  O-O {[%clk 0:02:20]} 7. O-O {[%clk 0:02:44]}  d5 {[%clk 0:02:17]} 8. a3 {[%clk 0:02:35]}  Be7 {[%clk 0:02:16]} 9. b4 {[%clk 0:02:30]}  a5 {[%clk 0:01:54]} 10. b5 {[%clk 0:02:30]}  Nbd7 {[%clk 0:01:53]} 11. a4 {[%clk 0:02:21]}  Ne4 {[%clk 0:01:52]} 12. Qc2 {[%clk 0:02:02]}  f5 {[%clk 0:01:49]} 13. Ba3 {[%clk 0:01:48]}  Bxa3 {[%clk 0:01:40]} 14. Rxa3 {[%clk 0:01:47]}  Rc8 {[%clk 0:01:41]} 15. cxd5 {[%clk 0:01:42]}  exd5 {[%clk 0:01:40]} 16. Raa1 {[%clk 0:01:34]}  Qe7 {[%clk 0:01:29]} 17. Rfe1 {[%clk 0:01:23]}  c5 {[%clk 0:01:22]} 18. bxc6 {[%clk 0:01:12]}  Rxc6 {[%clk 0:01:21]} 19. Qb2 {[%clk 0:01:11]}  Rh6 {[%clk 0:01:13]} 20. Rac1 {[%clk 0:01:00]}  Ndf6 {[%clk 0:00:42]} 21. Ne5 {[%clk 0:00:56]}  Ng4 {[%clk 0:00:41]} 22. Nxg4 {[%clk 0:00:31]}  fxg4 {[%clk 0:00:41]} 23. Bxe4 {[%clk 0:00:30]}  dxe4 {[%clk 0:00:42]} 24. Nf1 {[%clk 0:00:20]}  Bd5 {[%clk 0:00:40]} 25. Re2 {[%clk 0:00:18]}  Rhf6 {[%clk 0:00:35]} 26. Rc3 {[%clk 0:00:17]}  h5 {[%clk 0:00:30]} 27. Rec2 {[%clk 0:00:17]}  h4 {[%clk 0:00:29]} 28. Rc7 {[%clk 0:00:18]}  Qb4 {[%clk 0:00:29]} 29. Qxb4 {[%clk 0:00:17]}  axb4 {[%clk 0:00:29]} 30. Rd7 {[%clk 0:00:14]}  Bc6 {[%clk 0:00:18]} 31. Rc7 {[%clk 0:00:13]}  Bxa4 {[%clk 0:00:18]} 32. Rb2 {[%clk 0:00:12]}  Bb5 {[%clk 0:00:19]} 33. h3 {[%clk 0:00:07]}  g3 {[%clk 0:00:17]} 34. f4 {[%clk 0:00:04]}  exf3 {[%clk 0:00:17]} 35. gxf3 {[%clk 0:00:04]}  Bxf1 {[%clk 0:00:14]} 36. Kxf1 {[%clk 0:00:04]}  Rxf3+ {[%clk 0:00:14]} 37. Kg2 {[%clk 0:00:04]}  Rf2+ {[%clk 0:00:13]} 38. Rxf2 {[%clk 0:00:04]}  Rxf2+ {[%clk 0:00:10]} 39. Kg1 {[%clk 0:00:04]}  b3 {[%clk 0:00:11]} 40. Rb7 {[%clk 0:00:04]}  b2 {[%clk 0:00:11]} 41. Rxb6 {[%clk 0:00:04]}  Rc2 {[%clk 0:00:11]} 42. d5 {[%clk 0:00:04]}  Rc1+ {[%clk 0:00:11]} 43. Kg2 {[%clk 0:00:04]}  b1=Q {[%clk 0:00:11]} 44. Rxb1 {[%clk 0:00:05]}  Rxb1 {[%clk 0:00:12]} 0-1


[Site "https://www.chess.com"]

[Event "Titled Tuesday Blitz July 25 Early 2023"]
[White "Danielyan, Vahe"]
[Black "TomLiu777"]
[WhiteFideId "13304828"]
[WhiteElo "2672"]
[BlackElo "2344"]
[Result "0-1"]
[Round "1"]
[TimeControl "180+2"]
[Date "2023.07.25"]
[WhiteClock "0:00:04"]
[BlackClock "0:00:11"]
[Board "146"]

1. d4 {[%clk 0:02:56]}  Nf6 {[%clk 0:02:59]} 2. Nc3 {[%clk 0:02:54]}  d5 {[%clk 0:02:58]} 3. Bf4 {[%clk 0:02:54]}  g6 {[%clk 0:02:53]} 4. Qd2 {[%clk 0:02:53]}  c5 {[%clk 0:02:50]} 5. e3 {[%clk 0:02:51]}  Bg7 {[%clk 0:02:48]} 6. Nf3 {[%clk 0:02:49]}  Nc6 {[%clk 0:02:48]} 7. h4 {[%clk 0:02:44]}  O-O {[%clk 0:02:38]} 8. Be2 {[%clk 0:02:38]}  Bf5 {[%clk 0:02:37]} 9. dxc5 {[%clk 0:02:31]}  Ne4 {[%clk 0:02:13]} 10. Nxe4 {[%clk 0:02:30]}  dxe4 {[%clk 0:02:13]} 11. Nd4 {[%clk 0:02:06]}  Nxd4 {[%clk 0:02:05]} 12. exd4 {[%clk 0:02:06]}  Qxd4 {[%clk 0:01:58]} 13. Be3 {[%clk 0:01:30]}  Qxb2 {[%clk 0:01:39]} 14. O-O {[%clk 0:01:27]}  Rfd8 {[%clk 0:01:36]} 15. Qa5 {[%clk 0:01:27]}  Qxc2 {[%clk 0:01:31]} 16. Bd1 {[%clk 0:01:15]}  Qc3 {[%clk 0:01:10]} 17. Qxc3 {[%clk 0:01:12]}  Bxc3 {[%clk 0:01:11]} 18. Rb1 {[%clk 0:01:13]}  Rab8 {[%clk 0:00:52]} 19. Bb3 {[%clk 0:01:10]}  e5 {[%clk 0:00:47]} 20. Rfc1 {[%clk 0:01:08]}  Bd4 {[%clk 0:00:47]} 21. Ba4 {[%clk 0:01:01]}  Be6 {[%clk 0:00:43]} 22. Rc2 {[%clk 0:00:55]}  f5 {[%clk 0:00:37]} 23. Bg5 {[%clk 0:00:54]}  Rdc8 {[%clk 0:00:36]} 24. Rbc1 {[%clk 0:00:50]}  Rc7 {[%clk 0:00:35]} 25. Bb3 {[%clk 0:00:37]}  Kf7 {[%clk 0:00:32]} 26. Bd2 {[%clk 0:00:29]}  Rbc8 {[%clk 0:00:32]} 27. Bb4 {[%clk 0:00:27]}  Bxb3 {[%clk 0:00:30]} 28. axb3 {[%clk 0:00:28]}  Rc6 {[%clk 0:00:30]} 29. Ba3 {[%clk 0:00:24]}  a5 {[%clk 0:00:25]} 30. Rc4 {[%clk 0:00:18]}  Ke6 {[%clk 0:00:23]} 31. Kf1 {[%clk 0:00:13]}  Kd5 {[%clk 0:00:22]} 32. b4 {[%clk 0:00:07]}  axb4 {[%clk 0:00:20]} 33. Rxb4 {[%clk 0:00:06]}  Bxc5 {[%clk 0:00:14]} 34. Rb5 {[%clk 0:00:06]}  b6 {[%clk 0:00:13]} 35. Bb2 {[%clk 0:00:07]}  Ke6 {[%clk 0:00:12]} 36. g3 {[%clk 0:00:05]}  Bd4 {[%clk 0:00:12]} 37. Bxd4 {[%clk 0:00:03]}  Rxc1+ {[%clk 0:00:12]} 38. Kg2 {[%clk 0:00:03]}  exd4 {[%clk 0:00:12]} 39. Rxb6+ {[%clk 0:00:04]}  R8c6 {[%clk 0:00:12]} 40. Rb7 {[%clk 0:00:04]}  Rc7 {[%clk 0:00:12]} 41. Rb6+ {[%clk 0:00:04]}  R1c6 {[%clk 0:00:12]} 42. Rb8 {[%clk 0:00:04]}  d3 {[%clk 0:00:12]} 43. Re8+ {[%clk 0:00:04]}  Re7 {[%clk 0:00:11]} 0-1


[Site "https://www.chess.com"]

[Event "Titled Tuesday Blitz July 25 Early 2023"]
[White "Sovetbekova, Nurai"]
[Black "Nagare Kaivalya Sandip"]
[WhiteFideId "13801910"]
[BlackFideId "25957929"]
[WhiteElo "2344"]
[BlackElo "2667"]
[Result "1/2-1/2"]
[Round "1"]
[TimeControl "180+2"]
[Date "2023.07.25"]
[WhiteClock "0:00:04"]
[BlackClock "0:00:50"]
[Board "147"]

1. d4 {[%clk 0:03:00]}  Nf6 {[%clk 0:02:59]} 2. c4 {[%clk 0:02:58]}  e6 {[%clk 0:02:59]} 3. Nc3 {[%clk 0:02:57]}  Bb4 {[%clk 0:02:59]} 4. a3 {[%clk 0:02:57]}  Bxc3+ {[%clk 0:02:57]} 5. bxc3 {[%clk 0:02:58]}  c5 {[%clk 0:02:56]} 6. e3 {[%clk 0:02:58]}  O-O {[%clk 0:02:56]} 7. Bd3 {[%clk 0:02:58]}  b6 {[%clk 0:02:56]} 8. Nf3 {[%clk 0:02:55]}  Bb7 {[%clk 0:02:56]} 9. O-O {[%clk 0:02:54]}  d6 {[%clk 0:02:57]} 10. Qc2 {[%clk 0:02:53]}  Nbd7 {[%clk 0:02:52]} 11. e4 {[%clk 0:02:52]}  e5 {[%clk 0:02:48]} 12. Bg5 {[%clk 0:02:50]}  h6 {[%clk 0:02:48]} 13. Bh4 {[%clk 0:02:50]}  Qe7 {[%clk 0:02:47]} 14. Rfe1 {[%clk 0:02:38]}  Rfe8 {[%clk 0:02:44]} 15. Rad1 {[%clk 0:02:36]}  Nf8 {[%clk 0:02:43]} 16. Bg3 {[%clk 0:02:32]}  Ng6 {[%clk 0:02:41]} 17. h4 {[%clk 0:02:23]}  Nh5 {[%clk 0:02:39]} 18. d5 {[%clk 0:02:14]}  Bc8 {[%clk 0:02:39]} 19. Ra1 {[%clk 0:02:11]}  Bg4 {[%clk 0:02:38]} 20. Nh2 {[%clk 0:02:07]}  Bd7 {[%clk 0:02:36]} 21. Be2 {[%clk 0:02:06]}  Nhf4 {[%clk 0:02:20]} 22. h5 {[%clk 0:02:05]}  Nxe2+ {[%clk 0:02:19]} 23. Qxe2 {[%clk 0:02:01]}  Nf8 {[%clk 0:02:19]} 24. a4 {[%clk 0:01:57]}  a5 {[%clk 0:02:17]} 25. Reb1 {[%clk 0:01:55]}  Rab8 {[%clk 0:02:17]} 26. Rb2 {[%clk 0:01:51]}  Nh7 {[%clk 0:02:16]} 27. Nf3 {[%clk 0:01:47]}  Bg4 {[%clk 0:02:13]} 28. Qe3 {[%clk 0:01:40]}  Bxh5 {[%clk 0:02:12]} 29. Nh4 {[%clk 0:01:36]}  Bg4 {[%clk 0:02:12]} 30. Rab1 {[%clk 0:01:32]}  Qc7 {[%clk 0:02:10]} 31. Nf5 {[%clk 0:01:11]}  Bxf5 {[%clk 0:02:10]} 32. exf5 {[%clk 0:01:11]}  f6 {[%clk 0:01:41]} 33. f4 {[%clk 0:00:56]}  exf4 {[%clk 0:01:40]} 34. Qxf4 {[%clk 0:00:56]}  Red8 {[%clk 0:01:38]} 35. Re2 {[%clk 0:00:48]}  Qd7 {[%clk 0:01:28]} 36. Re6 {[%clk 0:00:29]}  Qxa4 {[%clk 0:01:28]} 37. Rxd6 {[%clk 0:00:30]}  Re8 {[%clk 0:01:23]} 38. Rdxb6 {[%clk 0:00:25]}  Rxb6 {[%clk 0:01:21]} 39. Rxb6 {[%clk 0:00:26]}  Qa1+ {[%clk 0:01:20]} 40. Kh2 {[%clk 0:00:25]}  Qxc3 {[%clk 0:01:20]} 41. Rb8 {[%clk 0:00:21]}  Rxb8 {[%clk 0:01:01]} 42. Qxb8+ {[%clk 0:00:21]}  Nf8 {[%clk 0:00:59]} 43. Bd6 {[%clk 0:00:18]}  Qxc4 {[%clk 0:00:59]} 44. Qxf8+ {[%clk 0:00:13]}  Kh7 {[%clk 0:00:58]} 45. Qf7 {[%clk 0:00:01]}  Qh4+ {[%clk 0:00:55]} 46. Kg1 {[%clk 0:00:01]}  c4 {[%clk 0:00:51]} 47. Qg6+ {[%clk 0:00:02]}  Kg8 {[%clk 0:00:50]} 48. Qe8+ {[%clk 0:00:02]}  Kh7 {[%clk 0:00:50]} 49. Qg6+ {[%clk 0:00:03]}  Kg8 {[%clk 0:00:50]} 50. Qe8+ {[%clk 0:00:03]}  Kh7 {[%clk 0:00:50]} 51. Qg6+ {[%clk 0:00:04]} 1/2-1/2


[Site "https://www.chess.com"]

[Event "Titled Tuesday Blitz July 25 Early 2023"]
[White "Shuvalova, Polina"]
[Black "Makhmudov, Shukhrat"]
[WhiteFideId "24171760"]
[BlackFideId "14200775"]
[WhiteElo "2661"]
[BlackElo "2343"]
[Result "1-0"]
[Round "1"]
[TimeControl "180+2"]
[Date "2023.07.25"]
[WhiteClock "0:01:10"]
[BlackClock "0:00:46"]
[Board "148"]

1. f4 {[%clk 0:02:59]}  e5 {[%clk 0:02:59]} 2. fxe5 {[%clk 0:02:59]}  d6 {[%clk 0:02:59]} 3. exd6 {[%clk 0:02:58]}  Bxd6 {[%clk 0:02:58]} 4. Nf3 {[%clk 0:02:57]}  g5 {[%clk 0:02:59]} 5. d4 {[%clk 0:02:57]}  g4 {[%clk 0:02:59]} 6. Ne5 {[%clk 0:02:57]}  Bxe5 {[%clk 0:02:57]} 7. dxe5 {[%clk 0:02:57]}  Qxd1+ {[%clk 0:02:57]} 8. Kxd1 {[%clk 0:02:57]}  Nc6 {[%clk 0:02:58]} 9. Bf4 {[%clk 0:02:53]}  Nge7 {[%clk 0:02:56]} 10. e3 {[%clk 0:02:48]}  Be6 {[%clk 0:02:55]} 11. Bb5 {[%clk 0:02:37]}  a6 {[%clk 0:02:51]} 12. Bd3 {[%clk 0:02:27]}  O-O-O {[%clk 0:02:37]} 13. Nc3 {[%clk 0:02:26]}  Ng6 {[%clk 0:02:31]} 14. Ke2 {[%clk 0:02:23]}  Ncxe5 {[%clk 0:02:30]} 15. Rad1 {[%clk 0:02:19]}  Nxd3 {[%clk 0:02:28]} 16. cxd3 {[%clk 0:02:18]}  Nxf4+ {[%clk 0:02:25]} 17. exf4 {[%clk 0:02:18]}  f5 {[%clk 0:02:24]} 18. Rhe1 {[%clk 0:02:16]}  Bf7 {[%clk 0:02:07]} 19. Kf2 {[%clk 0:02:14]}  Rd7 {[%clk 0:02:03]} 20. Re5 {[%clk 0:02:12]}  Rhd8 {[%clk 0:01:56]} 21. Ke3 {[%clk 0:02:09]}  Re8 {[%clk 0:01:53]} 22. d4 {[%clk 0:02:06]}  c5 {[%clk 0:01:46]} 23. Rxe8+ {[%clk 0:01:49]}  Bxe8 {[%clk 0:01:45]} 24. dxc5 {[%clk 0:01:50]}  Re7+ {[%clk 0:01:40]} 25. Kf2 {[%clk 0:01:48]}  Bf7 {[%clk 0:01:29]} 26. b4 {[%clk 0:01:44]}  Kc7 {[%clk 0:01:27]} 27. a3 {[%clk 0:01:41]}  Kc6 {[%clk 0:01:28]} 28. Rd6+ {[%clk 0:01:41]}  Kc7 {[%clk 0:01:26]} 29. Rf6 {[%clk 0:01:39]}  Bc4 {[%clk 0:01:16]} 30. Rxf5 {[%clk 0:01:36]}  Rd7 {[%clk 0:01:16]} 31. Ne4 {[%clk 0:01:20]}  Bd3 {[%clk 0:01:08]} 32. Re5 {[%clk 0:01:19]}  Bxe4 {[%clk 0:01:08]} 33. Rxe4 {[%clk 0:01:19]}  Rd3 {[%clk 0:00:59]} 34. Re3 {[%clk 0:01:19]}  Rd2+ {[%clk 0:00:55]} 35. Kg3 {[%clk 0:01:20]}  h5 {[%clk 0:00:56]} 36. f5 {[%clk 0:01:19]}  h4+ {[%clk 0:00:53]} 37. Kxg4 {[%clk 0:01:17]}  Rxg2+ {[%clk 0:00:53]} 38. Kxh4 {[%clk 0:01:17]}  Rxh2+ {[%clk 0:00:52]} 39. Kg5 {[%clk 0:01:17]}  a5 {[%clk 0:00:47]} 40. f6 {[%clk 0:01:10]}  Rg2+ {[%clk 0:00:46]} 41. Kf5 {[%clk 0:01:10]} 1-0


[Site "https://www.chess.com"]